Cogmind - Beta 14 @@@ ROGUE MODE // 2025.01.11 @ 14:40:04 Player: abnormality Result: Self-destructed Performance ------------- Evolutions (2) 1000 Regions Visited (3) 600 Robots Destroyed (23) 115 Value Destroyed (644) 644 Prototype IDs (0) 0 Alien Tech Used (0) 0 Bonus (0) 0 TOTAL SCORE: 2359 Bonus ------- None Cogmind --------- Core Integrity 472/550 Matter 244/300 Energy 100/100 System Corruption 0% Temperature Cool (0) Movement Core (100) Ox1 Location -8/Materials Parts ------- > --- POWER (2) -------- (None) > --- PROPULSION (3) --- (None) > --- UTILITY (4) ------ Small Storage Unit Improved Terrain Scanner Improved Targeting Computer > --- WEAPON (2) ------- (None) > --- INVENTORY (8) ---- Small Storage Unit Small Storage Unit Improved Medium Armor Plating Peak State ------------ > --- POWER ------------ Light Ion Engine > --- PROPULSION ------- Light Treads Light Treads Light Treads > --- UTILITY ---------- Small Storage Unit Improved Terrain Scanner Seismic Detector Improved Targeting Computer > --- WEAPON ----------- Heavy Assault Rifle Grenade Launcher > --- INVENTORY -------- Light Treads Light Treads Small Storage Unit Small Storage Unit Improved Medium Armor Plating Assault Rifle Light Cannon [Rating: 15] Favorites ----------- Power Ion Engine Engine Ion Engine Propulsion Light Treads Treads Light Treads Utility Small Storage Unit Device Seismic Detector Storage Small Storage Unit Processor Improved Targeting Computer Weapon Assault Rifle Ballistic Gun Assault Rifle Ballistic Cannon Light Cannon Launcher Grenade Launcher Build | -11 -10 -9 -8 ------- Run | Yrd Mat Mat Mat Slots Evolved 4 | . . 2 2 Power 1 | . . 1 . Propulsion 1 | . . . 1 Utility 2 | . . 1 1 Weapon . | . . . . Parts Attached 25 | 6 3 6 10 Power 4 | 1 . 2 1 Engine 4 | 1 . 2 1 Core . | . . . . Reactor . | . . . . Propulsion 5 | 2 . . 3 Treads 5 | 2 . . 3 Leg . | . . . . Wheel . | . . . . Hover . | . . . . Flight . | . . . . Utility 6 | 1 1 3 1 Device 4 | . 1 2 1 Storage 1 | 1 . . . Processor 1 | . . 1 . Hackware . | . . . . Protection . | . . . . Artifact . | . . . . Weapon 10 | 2 2 1 5 Energy Gun . | . . . . Energy Cannon . | . . . . Ballistic Gun 5 | 2 1 . 2 Ballistic Cannon 3 | . 1 1 1 Launcher 2 | . . . 2 Special Weapon . | . . . . Impact Weapon . | . . . . Slashing Weapon . | . . . . Piercing Weapon . | . . . . Special Melee Weapon . | . . . . Unidentified Prototypes . | . . . . Parts Lost 16 | . . 4 12 Power 4 | . . 2 2 Propulsion 5 | . . . 5 Utility 2 | . . 1 1 Weapon 5 | . . 1 4 Highest Loss Streak 7 | . . 2 7 To Critical Strikes . | . . . . Average Slot Usage (%) 89 | . 88 96 82 Engine 14 | . 14 19 7 Treads 24 | . 28 22 23 Device 11 | . 3 14 17 Storage 11 | . 14 11 9 Processor 5 | . . 7 9 Ballistic Gun 19 | . 27 18 12 Ballistic Cannon 1 | . 1 3 . Peak Build Rating 15 | 6 7 11 15 Average Rating 9 | 5 6 9 13 On Entrance 5 | . 6 7 9 Naked Turns . | . . . . Heaviest Build 19 | 13 15 19 16 Greatest Support 60 | 40 40 40 60 Greatest Overweight (x) 1 | . . . 1 Average Overweight (x) . | . . . . Largest Inventory Capacity 8 | 8 8 8 8 Average Capacity 7 | 7 8 8 8 Most Carried 8 | 6 8 8 8 Average Carried 6 | 1 7 6 5 Final Capacity 8 | 8 8 8 8 Final Carried 7 | 6 7 7 3 Class Distribution -------------------- 74% | Mutant 25% | Scavenger-Mutant Dominant Class ---------------- Mutant | -10/Materials Mutant | -9/Materials Scavenger-Mutant | -8/Materials Resources | -11 -10 -9 -8 ----------- Run | Yrd Mat Mat Mat Matter Collected 781 | 141 65 368 207 Remotely . | . . . . Salvage Created 968 | 135 56 401 376 Parts 54 | 8 9 22 15 Haulers Intercepted . | . . . . Recyclers Shooed 2 | . . 1 1 Parts Field Recycled . | . . . . Retrieved Matter . | . . . . Parts Self-Destructed . | . . . . Prevented . | . . . . Kills | -11 -10 -9 -8 ------- Run | Yrd Mat Mat Mat Combat Hostiles Destroyed 12 | . 1 6 5 Guns 9 | . . 6 3 Cannons 1 | . 1 . . AOE 2 | . . . 2 Classes Destroyed 6 | 2 2 2 . Builder 2 | . . 1 1 Tunneler 2 | 2 . . . Recycler 4 | 1 . 1 2 Watcher 3 | . 2 . 1 Grunt 9 | . 1 3 5 Sentry 3 | . . 3 . Best Kill Streak 4 | 3 3 3 4 Combat Bots Only 3 | . 1 3 2 Max Kills in Single Turn 2 | 1 1 1 2 Gunslinging . | . . . . Exploded 2 | . . . 2 Melee . | . . . . Uniques/NPCs Destroyed . | . . . . Combat | -11 -10 -9 -8 -------- Run | Yrd Mat Mat Mat Hostile Shots Fired 98 | . 7 40 51 Missed 21 | . 3 8 10 Damage Taken 1573 | . 129 442 1002 Core 137 | . . 59 78 Absorbed by Shields . | . . . . Core Remaining (%) 95 | 100 100 85 . Volleys Fired 92 | 12 13 31 36 Largest 2 | 2 2 2 2 Hottest 65 | 40 55 55 65 Shots Fired 159 | 24 26 55 54 Gun 138 | 24 20 48 46 Cannon 15 | . 6 7 2 Launcher 6 | . . . 6 Special . | . . . . Kinetic 153 | 24 26 55 48 Thermal . | . . . . Explosive 6 | . . . 6 Electromagnetic . | . . . . Robot Hit Streak 18 | 3 9 18 8 Robot Miss Streak 6 | 6 3 2 3 Penetration Max . | . . . . Secondary Targets . | . . . . Shots Hit Robots 100 | 9 12 43 36 Core Hits 49 | 5 6 17 21 Critical Kills 1 | . . 1 . Critical Parts Destroyed . | . . . . Critical Strikes 1 | . . 1 . Destroy 1 | . . 1 . Melee Attacks . | . . . . Impact . | . . . . Slashing . | . . . . Piercing . | . . . . Sneak Attacks . | . . . . Combat Hostiles . | . . . . Follow-up Attacks . | . . . . Damage Inflicted 1624 | 110 140 515 859 Guns 1099 | 110 80 425 484 Cannons 150 | . 60 90 . Explosions 375 | . . . 375 Melee . | . . . . Ramming . | . . . . Kinetic 1249 | 110 140 515 484 Thermal . | . . . . Explosive 375 | . . . 375 Electromagnetic . | . . . . Impact . | . . . . Slashing . | . . . . Piercing . | . . . . Highest Corruption . | . . . . Average Corruption . | . . . . Corruption Purged . | . . . . Corruption Blocked . | . . . . Overload Shots . | . . . . Overflow Damage 83 | . . . 83 Projectiles . | . . . . Explosions 83 | . . . 83 Melee . | . . . . Knockbacks 1 | . 1 . . Impact . | . . . . Kinetic 1 | . 1 . . Secondary . | . . . . Self-Inflicted Damage 220 | . 88 . 132 Shots 3 | . 1 . 2 Rammed . | . . . . Targets Rammed . | . . . . Kicked . | . . . . Crushed . | . . . . Highest Temperature 30 | . 8 30 16 Average Temperature 8 | . 4 9 9 Received Heat Transfer 519 | . 24 171 324 Siege Activations . | . . . . Robots Corrupted . | . . . . Combat Hostiles . | . . . . Parts Fried . | . . . . Impact Corruptions . | . . . . Robots Melted . | . . . . Combat Hostiles . | . . . . Parts Melted . | . . . . Heat Transferred . | . . . . Parts Sabotaged . | . . . . Parts Stolen . | . . . . Parts Stripped . | . . . . Power Chain Reactions . | . . . . Alert | -11 -10 -9 -8 ------- Run | Yrd Mat Mat Mat Peak Influence 199 | 15 140 192 199 Initial 9 | . 9 . . Average 80 | 6 94 96 69 Maximum Alert Level . | . . . . Low Security (%) 100 | 100 100 100 100 Level 1 . | . . . . Level 2 . | . . . . Level 3 . | . . . . Level 4 . | . . . . Level 5 . | . . . . High Security . | . . . . Max Security . | . . . . Squads Dispatched 5 | . . 2 3 Investigation 1 | . . . 1 Extermination . | . . . . Reinforcement 4 | . . 2 2 Assault . | . . . . Garrison . | . . . . Intercept . | . . . . Searches Triggered . | . . . . Construction Impeded . | . . . . Haulers Reinforced . | . . . . Active Scanning Responses . | . . . . Cargo Convoy Interrupts . | . . . . Stealth | -11 -10 -9 -8 --------- Run | Yrd Mat Mat Mat Distress Signals 4 | . 1 2 1 Communications Jammed . | . . . . Distress Signals . | . . . . Times Spotted 28 | . 4 9 15 Peak Tracking Total 7 | . 3 5 7 Tactical Retreats 2 | . . . 2 Traps | -11 -10 -9 -8 ------- Run | Yrd Mat Mat Mat Traps Triggered . | . . . . Indirectly . | . . . . Trap Hack Attempts . | . . . . Triggered . | . . . . Disarmed . | . . . . Reprogrammed . | . . . . Reused . | . . . . Traps Extracted . | . . . . Installed . | . . . . Triggered . | . . . . Machines | -11 -10 -9 -8 ---------- Run | Yrd Mat Mat Mat Machines Disabled 3 | . 1 . 2 Max in Single Turn 2 | . 1 . 2 Machines Repaired . | . . . . Machines Dismantled . | . . . . Machines Sabotaged . | . . . . Overloaded Fab Kills . | . . . . Hacking | -11 -10 -9 -8 --------- Run | Yrd Mat Mat Mat Machines Accessed 2 | . . 1 1 Terminals 2 | . . 1 1 Fabricators . | . . . . Repair Stations . | . . . . Recycling Units . | . . . . Scanalyzers . | . . . . Garrison Access . | . . . . Total Hacks 8 | . . 5 3 Successful 3 | . . 2 1 Failed 5 | . . 3 2 Catastrophic 1 | . . . 1 Database Lockouts . | . . . . Manual . | . . . . Terminals 8 | . . 5 3 Fabricators . | . . . . Repair Stations . | . . . . Recycling Units . | . . . . Scanalyzers . | . . . . Garrison Access . | . . . . Terminal Hacks 3 | . . 2 1 Record 1 | . . . 1 Alert Level 1 | . . 1 . Registered Components 1 | . . 1 . Fabricator Hacks . | . . . . Repair Station Hacks . | . . . . Recycling Unit Hacks . | . . . . Scanalyzer . | . . . . Garrison Access Hacks . | . . . . Unauthorized Hacks . | . . . . Terminals . | . . . . Fabricators . | . . . . Repair Stations . | . . . . Recycling Units . | . . . . Scanalyzers . | . . . . Garrison Access . | . . . . Data Cores Recovered . | . . . . Used . | . . . . Hacking Detections 1 | . . . 1 Full Trace Events 1 | . . . 1 Feedback Events . | . . . . Feedback Blocked . | . . . . Robot Schematics Acquired . | . . . . Robots Built . | . . . . Authchips . | . . . . Time . | . . . . Total Robot Build Rating . | . . . . Part Schematics Acquired . | . . . . Parts Built . | . . . . Authchips . | . . . . Time . | . . . . Total Part Build Rating . | . . . . Parts Repaired . | . . . . Time . | . . . . Parts Recycled . | . . . . Recycled Matter . | . . . . Retrieved Matter . | . . . . Retrieved Components . | . . . . Parts Scanalyzed . | . . . . Part Schematics Acquired . | . . . . Parts Damaged . | . . . . Bothacking | -11 -10 -9 -8 ------------ Run | Yrd Mat Mat Mat Used RIF Installer . | . . . . Robots Hacked . | . . . . Non-combat . | . . . . Combat . | . . . . Robot Hacks Applied . | . . . . Relay Couplers Released . | . . . . Fabnet Peak Effective % . | . . . . Robots Rewired . | . . . . Allies Hacked . | . . . . Hacks Repelled . | . . . . Allies | -11 -10 -9 -8 -------- Run | Yrd Mat Mat Mat Total Allies . | . . . . Largest Group . | . . . . Highest-Rated Group . | . . . . Highest-Rated Ally . | . . . . Total Orders . | . . . . Ally Attacks . | . . . . Total Damage . | . . . . Kills . | . . . . Allies Corrupted . | . . . . Allies Melted . | . . . . Intel | -11 -10 -9 -8 ------- Run | Yrd Mat Mat Mat Robot Analysis Total . | . . . . Derelict Logs Recovered . | . . . . Drone Launches . | . . . . Drone Recoveries . | . . . . Exploration | -11 -10 -9 -8 ------------- Run | Yrd Mat Mat Mat Turns Passed 1319 | 115 416 412 376 Spaces Moved 599 | 48 214 196 141 Core 12 | 11 . . 1 Treads 587 | 37 214 196 140 Legs . | . . . . Wheels . | . . . . Hover . | . . . . Flight . | . . . . Fastest Speed 50 | 50 160 160 100 Average Speed 157 | 134 160 160 159 Slowest Speed 160 | 160 160 160 160 Overloaded Moves . | . . . . Propulsion Burnouts . | . . . . Robots Hopped . | . . . . Cave-ins Triggered . | . . . . Exploration Rate (%) 18 | 4 27 23 19 Regions Visited 3 Branch Regions . Pre-discovered Areas . | . . . . Known Exits Taken . | . . . . Unknown Exits Taken 3 | 1 1 1 . Scrap Searched . | . . . . Spaces Dug . | . . . . Terrain Destroyed 115 | . 42 . 73 Melee . | . . . . Projectile . | . . . . AOE 115 | . 42 . 73 Terrain Rammed . | . . . . Walls Destroyed . | . . . . Machines Disabled . | . . . . Actions | -11 -10 -9 -8 --------- Run | Yrd Mat Mat Mat Total 819 | 77 263 243 236 Wait 81 | . 30 5 46 Move 596 | 47 213 195 141 Hop . | . . . . Pick Up 23 | 12 3 5 3 Fast Attach . | . . . . Attach 20 | 6 1 6 7 Detach 1 | . . 1 . Swap 5 | . 2 . 3 Drop 1 | . 1 . . Fire 92 | 12 13 31 36 Melee . | . . . . Ram . | . . . . Kick . | . . . . Crush . | . . . . Escape Stasis . | . . . . Rewire . | . . . . Trap . | . . . . Miscellaneous . | . . . . Route ------- -11/Scrapyard -10/Materials -9/Materials (discovered 2 exits: *Mat / [*Min]) -8/Materials History --------- Turn | Location | Event 9 | -11/Scrapyard | Discovered new exit (range 15) 116 | -11/Scrapyard | Entered Materials 311 | -10/Materials | Build established: Mutant 494 | -10/Materials | Discovered new exit (range 16) 532 | -10/Materials | Entered another Materials area 532 | -9/Materials | Evolved 2 slots: Power x1, Utility x1 534 | -9/Materials | Discovered new exit (range 15) 877 | -9/Materials | Discovered new exit (range 13) 944 | -9/Materials | Entered another Materials area 944 | -8/Materials | Evolved 2 slots: Propulsion x1, Utility x1 1199 | -8/Materials | Lost 3 parts (1p2n) 1320 | -8/Materials | Self-destructed Last Messages --------------- 01301_ Acquired 32 matter. 01313_ Lgt. Cannon destroyed. 01314_ U-05 Engineer lays Concrete. 01315_ H-61 Shepherd calls for reinforcements. 01315_ ALERT: Hostile activity reported, dispatching reinforcements to area. 01315_ Penetrated by Slug. 01315_ Lgt. Treads destroyed. 01315_ R-06 Scavenger destroyed. 01316_ The unstable cave ceiling collapses. 01316_ ALERT: Hostiles spotted, dispatching reinforcements to Terminal M009. 01316_ U-05 Engineer lays Concrete. 01317_ The unstable cave ceiling collapses. 01317_ Grenade Launcher destroyed. 01317_ U-05 Engineer lays Concrete. 01319_ Lgt. Ion Engine destroyed. 01319_ Lgt. Treads destroyed. 01319_ Seismic Detector destroyed. 01319_ U-05 Engineer lays Concrete. Map ----- +----------------------------------------------------+ | ?#????#???# ! # ### #??????????????? | | ?????#????####+########?? #??????????????? | | ??????#??#???# #?######## """ % #??????????????? | | ????????#??#?# #?# """ #?""" ! #??????????????? | | ??? ???????#?# #?# "T" #?""" #??????????????? | | ????? ######## ### #??? ? ???????????????? | | ??????# # ! #?? ???? ???????????????? | | %+ %! + #?#??????????????????????? | | # % # """ #?##?????????????????????? | | ??????# ###### # """ #????? ??????????????????? | | ??????# ???##?# # """ #????????????????????????? | | ??????# ???????# # #????????????????????????? | | ??????#???????## ########????????????????????????? | | ?????? ? ??#???# #?## ???????? ?????????????????? | | ???? ????????#?# #??# ????"?#???????????????????? | | ??????????????## ##?# ??????#?????#?????????????? | | ???#??????????# #?# ? ?????????????????????? | | ??????????????# #?# ??????#?????????????????? | | ??????#?????### ### ""????????????????????????? | | ???##?#????#?# ## ""????????????????????????? | | ????????????## # ""??? ????????????????????? | | ?????????????## = #? ????????????????????????? | | ?? ??????#???# = = ###;#+#############+?????????? | | ?????????????# u % g g ????????? | | ????#????????# u % % g g ????????? | | ?? ??????"???# @ gg ????????? | | ?????????????######### #######+###?????????????? | | ???????"??"??????????# #???????????????????????? | | ?????????????????????# ##??????????????????????? | | ????????????????????# #???????????????????????? | | ??????????? ????? ?# ???????????????????????? | | ????????????????????# ???????????????????????? | | ???????????????????? #??????????????????????? | | ???????????????????# ??????????????????????? | | ?????????????????? % ? ????????????????????? | | ?????????????? ?? H [#??????????????????????? | | ?????????????????? ] #??????????????????????? | | ?????????????????+### #??????????????????????? | | ????????????????????## #??????????????????????? | | ????????????????????## ##??????????????????????? | | ?????????????????????? ????????????????????????? | | ?????????????????????????????????????????????????? | | ?????????????????????????????????????????????????? | | ?????????????????????????????????????????????????? | | ?????????????????????????????????????????????????? | | ?????????????????????????????????????????????????? | | ?????????????????????????????????????????????????? | | ?????????????????????????????????????????????????? | | ?????????????????????????????????????????????????? | | ?????????????????????????????????????????????????? | +----------------------------------------------------+ Best States ------------- Heat Dissipation 31 Energy Generation 15 Energy Capacity 275 Matter Stores 300 Matter Capacity 300 Sight Range 16 Robot Scan Range 14 Terrain Scan Range 16 Terrain Scan Density 10 Evasion (%) 50 Targeting Accuracy 6 Recoil Reduction 3 Item Schematics ----------------- None Robot Schematics ------------------ None Fabricated ------------ Nothing Alien Tech Used ----------------- None Achievements -------------- None Challenges ------------ None Game ------ Seed WarlordCatalystStripper Manual? 0 Play Time 00:12:08 Cumulative 15.9 hours Start 2025.01.11 @ 14:30:21 End 2025.01.11 @ 14:40:04 Sessions 1 Manual Loads 0 Difficulty Rogue Special Mode None Game No. 75 Rogue 75 Adventurer 0 Explorer 0 Win Type - Total 0 Types 0/0/0/0/0/0/0/0/0 Lore% 16 Gallery% 18 Achievement% 21 Wizard Run 0 Options --------- Layout 0 ASCII 0 Keyboard 0 Movement Mouse Keybinds 0 Fullscreen 1 Font 18/SmallcapsGlow Map View 38x25 Zoom Use 97% Tactical HUD 1 Map Filters NONE Filters NONE Steam 1 RUN: 91896ae5-d0cf-4e7d-a506-caf3cd41c02c